[Event "I Liga Centralne Srbije"]
[Site "Bajina Bašta, Serbia"]
[Date "2020.10.11"]
[Round "2.5"]
[White "Ivanovic, Dragutin"]
[Black "Banjovic, Sasa"]
[Result "1-0"]
[ECO "A04"]
[WhiteElo "2307"]
[BlackElo "2121"]
[Annotator "Knez"]
[PlyCount "72"]
[EventDate "2020.??.??"]
[TimeControl "90"]
[BlackClock "0:17:05"]

1. Nf3 {[%emt 0:00:00]} f5 {[%emt 0:00:00]} 2. d3 {[%emt 0:00:00]} d6 {[%emt 0:
00:00]} 3. e4 {[%emt 0:00:00]} e5 {[%emt 0:00:00]} 4. exf5 {[%emt 0:00:00]}
Bxf5 {[%emt 0:00:00]} 5. g3 {[%emt 0:00:00]} c5 {[%emt 0:00:00]} 6. Bg2 {
[%emt 0:00:00]} Nc6 {[%emt 0:00:00]} 7. O-O {[%emt 0:00:00]} Be7 {[%emt 0:00:
00]} 8. c3 {[%emt 0:00:00]} Nf6 {[%emt 0:00:00]} 9. d4 {[%emt 0:00:00]} e4 {
[%emt 0:00:00]} 10. Nh4 {[%emt 0:00:00]} Bg4 {[%emt 0:00:00]} 11. Qb3 {[%emt 0:
00:00]} Na5 {[%emt 0:00:00]} 12. Qa4+ {[%emt 0:00:00]} Bd7 {[%emt 0:00:00]} 13.
Qc2 {[%emt 0:00:00]} cxd4 {[%emt 0:00:00]} 14. cxd4 {[%emt 0:00:00]} d5 {
[%emt 0:00:00]} 15. f3 {[%emt 0:00:00]} Bb5 {[%emt 0:00:00]} 16. Re1 {[%emt 0:
00:00]} Bd3 {[%emt 0:00:00]} 17. Qf2 {[%emt 0:00:00]} O-O {[%emt 0:00:00]} 18.
Nf5 {[%emt 0:00:00]} Bb4 {[%emt 0:00:00]} 19. Bd2 {[%emt 0:00:00]} Qb6 {
[%emt 0:00:00]} 20. Bxb4 {[%emt 0:00:00]} Qxb4 {[%emt 0:00:00]} 21. Nc3 {
[%emt 0:00:00]} Rae8 {[%emt 0:00:00]} 22. a3 {[%emt 0:00:00]} Qb6 {[%emt 0:00:
00]} 23. Na4 {[%emt 0:00:00]} Qd8 {[%emt 0:00:00]} 24. Nc5 {[%emt 0:00:00]}
exf3 {[%emt 0:00:00]} 25. Nxd3 {[%emt 0:00:00]} fxg2 {[%emt 0:00:00]} 26. Qxg2
{[%emt 0:00:00]} Ne4 {[%emt 0:00:00]} 27. Rf1 {[%emt 0:00:00]} Nb3 {[%emt 0:00:
00]} 28. Rad1 {[%emt 0:00:00]} g6 {[%emt 0:00:00]} 29. Qc2 {[%emt 0:00:00]}
Nbd2 {[%emt 0:00:00]} 30. Nh6+ {[%emt 0:00:00]} Kg7 {[%emt 0:00:00]} 31. Rxf8 {
[%emt 0:00:00]} Rxf8 {[%emt 0:00:00]} 32. Rxd2 {[%emt 0:00:00]} Qg5 {[%emt 0:
00:28]} 33. Re2 {[%emt 0:00:00]} Kxh6 {[%emt 0:00:10]} 34. Kg2 {[%emt 0:00:00]}
Qf5 {[%emt 0:00:10]} 35. Qc1+ {[%emt 0:00:00]} g5 {[%emt 0:00:00]} 36. Ne5 {
[%emt 0:00:00]} Kg7 {[%emt 0:00:42]} 1-0

[Event "I Liga Centralne Srbije"]
[Site "Bajina Bašta, Serbia"]
[Date "2020.10.11"]
[Round "2.5"]
[White "Dimitrijevic, Zoran"]
[Black "Zivanovic, Bojan"]
[Result "1/2-1/2"]
[ECO "D02"]
[WhiteElo "2088"]
[BlackElo "2159"]
[Annotator "Knez"]
[PlyCount "119"]
[EventDate "2020.??.??"]
[TimeControl "90"]
[WhiteClock "0:02:15"]
[BlackClock "0:33:44"]

1. d4 {[%emt 0:00:00]} Nf6 {[%emt 0:00:00]} 2. Nf3 {[%emt 0:00:00]} d5 {
[%emt 0:00:00]} 3. Bf4 {[%emt 0:00:00]} e6 {[%emt 0:00:00]} 4. e3 {[%emt 0:00:
00]} Bd6 {[%emt 0:00:00]} 5. Bg5 {[%emt 0:00:00]} Nbd7 {[%emt 0:00:00]} 6. Bd3
{[%emt 0:00:00]} h6 {[%emt 0:00:00]} 7. Bh4 {[%emt 0:00:00]} O-O {[%emt 0:00:
00]} 8. O-O {[%emt 0:00:00]} e5 {[%emt 0:00:00]} 9. dxe5 {[%emt 0:00:00]} Nxe5
{[%emt 0:00:00]} 10. Nxe5 {[%emt 0:00:00]} Bxe5 {[%emt 0:00:00]} 11. c3 {
[%emt 0:00:00]} g5 {[%emt 0:00:00]} 12. Bg3 {[%emt 0:00:00]} Bxg3 {[%emt 0:00:
00]} 13. hxg3 {[%emt 0:00:00]} Ng4 {[%emt 0:00:00]} 14. Be2 {[%emt 0:00:00]}
Ne5 {[%emt 0:00:00]} 15. Nd2 {[%emt 0:00:00]} Qe7 {[%emt 0:00:00]} 16. Re1 {
[%emt 0:00:00]} Bf5 {[%emt 0:00:00]} 17. Nf3 {[%emt 0:00:00]} c6 {[%emt 0:00:
00]} 18. Nxe5 {[%emt 0:00:00]} Qxe5 {[%emt 0:00:00]} 19. Qd4 {[%emt 0:00:00]}
Rfe8 {[%emt 0:00:00]} 20. Qxe5 {[%emt 0:00:00]} Rxe5 {[%emt 0:00:00]} 21. Rad1
{[%emt 0:00:00]} Rae8 {[%emt 0:00:00]} 22. Bf3 {[%emt 0:00:00]} Bg6 {[%emt 0:
00:00]} 23. g4 {[%emt 0:00:00]} f5 {[%emt 0:00:00]} 24. gxf5 {[%emt 0:00:00]}
Bxf5 {[%emt 0:00:00]} 25. Rd4 {[%emt 0:00:00]} Be4 {[%emt 0:00:00]} 26. Bxe4 {
[%emt 0:00:00]} Rxe4 {[%emt 0:00:00]} 27. Red1 {[%emt 0:00:00]} R8e7 {[%emt 0:
00:00]} 28. g3 {[%emt 0:00:00]} Kf7 {[%emt 0:00:00]} 29. Kg2 {[%emt 0:00:05]}
Kg6 {[%emt 0:01:18]} 30. g4 {[%emt 0:00:00]} h5 {[%emt 0:00:00]} 31. gxh5+ {
[%emt 0:00:00]} Kxh5 {[%emt 0:00:00]} 32. Rh1+ {[%emt 0:00:00]} Kg6 {[%emt 0:
00:00]} 33. Rh8 {[%emt 0:00:00]} Rxd4 {[%emt 0:00:00]} 34. cxd4 {[%emt 0:00:00]
} Kf5 {[%emt 0:00:00]} 35. Kf3 {[%emt 0:00:00]} Rg7 {[%emt 0:00:00]} 36. Rf8+ {
[%emt 0:00:00]} Kg6 {[%emt 0:00:00]} 37. Kg4 {[%emt 0:00:00]} Rh7 {[%emt 0:00:
00]} 38. Rg8+ {[%emt 0:00:00]} Kf6 {[%emt 0:00:00]} 39. Rxg5 {[%emt 0:00:00]}
Rh1 {[%emt 0:00:00]} 40. Rf5+ {[%emt 0:00:00]} Ke6 {[%emt 0:00:00]} 41. Rh5 {
[%emt 0:00:00]} Rg1+ {[%emt 0:00:00]} 42. Kf4 {[%emt 0:00:00]} Rf1 {[%emt 0:00:
00]} 43. Rh6+ {[%emt 0:00:00]} Kd7 {[%emt 0:00:00]} 44. Rh7+ {[%emt 0:00:00]}
Kc8 {[%emt 0:00:00]} 45. Ke5 {[%emt 0:00:00]} Rxf2 {[%emt 0:00:00]} 46. b4 {
[%emt 0:00:00]} a6 {[%emt 0:00:00]} 47. Kd6 {[%emt 0:00:00]} Kb8 {[%emt 0:00:
00]} 48. a4 {[%emt 0:00:00]} Ka7 {[%emt 0:00:00]} 49. b5 {[%emt 0:00:00]} axb5
{[%emt 0:00:00]} 50. axb5 {[%emt 0:00:00]} Kb6 {[%emt 0:00:00]} 51. bxc6 {
[%emt 0:00:00]} bxc6 {[%emt 0:00:00]} 52. Rh1 {[%emt 0:00:00]} Rf6+ {[%emt 0:
00:00]} 53. Ke5 {[%emt 0:00:00]} Rf3 {[%emt 0:00:00]} 54. Rb1+ {[%emt 0:00:00]}
Kc7 {[%emt 0:00:00]} 55. Rb3 {[%emt 0:00:00]} Rh3 {[%emt 0:00:00]} 56. Kf4 {
[%emt 0:00:00]} Kd6 {[%emt 0:00:00]} 57. Rc3 {[%emt 0:00:00]} Rh1 {[%emt 0:00:
00]} 58. Kf3 {[%emt 0:00:00]} Rh4 {[%emt 0:00:00]} 59. Ke2 {[%emt 0:00:00]}
Rh2+ {[%emt 0:00:00]} 60. Ke1 {[%emt 0:01:24]} 1/2-1/2

[Event "I Liga Centralne Srbije"]
[Site "Bajina Bašta, Serbia"]
[Date "2020.10.11"]
[Round "2.5"]
[White "Jovcic, Zoran"]
[Black "Veselinov, Ivica"]
[Result "1-0"]
[ECO "B01"]
[WhiteElo "2140"]
[BlackElo "1836"]
[Annotator "Knez"]
[PlyCount "41"]
[EventDate "2020.??.??"]
[TimeControl "90"]
[WhiteClock "0:01:03"]
[BlackClock "0:47:56"]

1. e4 {[%emt 0:00:00]} d5 {[%emt 0:00:00]} 2. exd5 {[%emt 0:00:00]} Qxd5 {
[%emt 0:00:00]} 3. Nc3 {[%emt 0:00:00]} Qa5 {[%emt 0:00:00]} 4. d4 {[%emt 0:00:
00]} c6 {[%emt 0:00:00]} 5. Nf3 {[%emt 0:00:00]} Bf5 {[%emt 0:00:00]} 6. Bc4 {
[%emt 0:00:00]} Nf6 {[%emt 0:00:00]} 7. Ne5 {[%emt 0:00:00]} e6 {[%emt 0:00:00]
} 8. g4 {[%emt 0:00:00]} Be4 {[%emt 0:00:00]} 9. f3 {[%emt 0:00:00]} Bd5 {
[%emt 0:00:00]} 10. Bd2 {[%emt 0:00:00]} Bxc4 {[%emt 0:00:00]} 11. Nxc4 {
[%emt 0:00:00]} Qc7 {[%emt 0:00:00]} 12. Qe2 {[%emt 0:00:00]} Nbd7 {[%emt 0:00:
00]} 13. O-O-O {[%emt 0:00:00]} O-O-O {[%emt 0:00:00]} 14. Bg5 {[%emt 0:00:00]}
Nb6 {[%emt 0:00:00]} 15. Ne5 {[%emt 0:00:00]} Nbd5 {[%emt 0:00:00]} 16. Ne4 {
[%emt 0:00:00]} h6 {[%emt 0:00:00]} 17. Bh4 {[%emt 0:00:00]} Qa5 {[%emt 0:00:
00]} 18. Kb1 {[%emt 0:00:00]} Nxe4 {[%emt 0:00:00]} 19. fxe4 {[%emt 0:00:00]}
Ba3 {[%emt 0:00:00]} 20. exd5 {[%emt 0:00:00]} Rxd5 {[%emt 0:00:27]} 21. c4 {
[%emt 0:00:00]} 1-0